[Event "Fagernes Chess GM-Swiss 2025"]
[Site "Fagernes"]
[Date "2025.04.20"]
[Round "9.2"]
[White "Kreken, Eivind Grunt"]
[Black "Jumabayev, Rinat"]
[Result "1-0"]
[Annotator "RC"]
[ECO "B41"]
[WhiteElo "2326"]
[BlackElo "2549"]
[PlyCount "143"]
[EventDate "2025.04.12"]
[EventCountry "NOR"]
[SourceTitle "playchess.com"]
[Source "ChessBase"]
[SourceQuality "1"]
[TimeControl "40/6000+30:2400+30"]

1. e4 {[%emt 0:00:10]} c5 {[%emt 0:06:00]} 2. Nf3 {[%emt 0:00:13]} e6 {[%emt 0:00:25]} 3. d4 {[%emt 0:00:07]} cxd4 {[%emt 0:00:12]} 4. Nxd4 {[%emt 0:00:09]} a6 {[%emt 0:00:07]} 5. c4 {[%emt 0:00:40]} Nf6 {[%emt 0:00:36]} 6. Nc3 {[%emt 0:00:06]} Qc7 {[%emt 0:00:04]} 7. a3 {[%emt 0:00:38]} b6 {[%emt 0:00:09]} 8. Be3 {[%emt 0:00:43]} Bb7 {[%emt 0:00:12]} 9. f3 {[%emt 0:00:21]} Be7 {[%emt 0:00:13]} 10. Rc1 {[%emt 0:02:30]} O-O {[%emt 0:00:41]} 11. Be2 {[%emt 0:02:18]} d6 {[%emt 0:00:41]} 12. Kd2 {[%emt 0:05:22]} Nbd7 {[%emt 0:11:04]} 13. Kc2 d5 {[%emt 0:28:36]} 14. cxd5 {[%emt 0:12:48]} exd5 {[%emt 0:00:50]} 15. Nf5 {[%emt 0:29:22]} Bc5 {[%emt 0:03:42]} 16. Qd2 {[%emt 0:14:35]} dxe4 {[%emt 0:04:16]} 17. Bf4 {[%emt 0:04:20]} Qc6 {[%emt 0:08:09]} 18. b4 {[%emt 0:07:56]} Qe6 {[%emt 0:09:30]} 19. Nd6 {[%emt 0:11:07]} Bxd6 {[%emt 0:07:22]} 20. Qxd6 {[%emt 0:00:07]} Qxd6 {[%emt 0:07:15]} 21. Bxd6 {[%emt 0:00:02]} Rfe8 {[%emt 0:00:10]} 22. Rhe1 {[%emt 0:02:32]} b5 {[%emt 0:04:09]} 23. a4 {[%emt 0:01:54]} Re6 {[%emt 0:05:37]} 24. Bg3 {[%emt 0:00:55]} bxa4 {[%emt 0:00:08]} 25. Nxa4 {[%emt 0:02:47]} Nd5 {[%emt 0:01:02]} 26. Kb3 {[%emt 0:04:46]} Ne3 {[%emt 0:02:54]} 27. fxe4 {[%emt 0:02:12]} Bxe4 {[%emt 0:00:53]} 28. Bf3 {[%emt 0:00:28]} Bxf3 {[%emt 0:01:50]} 29. gxf3 {[%emt 0:00:01]} h5 {[%emt 0:00:56]} 30. Nc5 {[%emt 0:02:06]} Nxc5+ {[%emt 0:01:52]} 31. bxc5 {[%emt 0:00:01]} Rc8 {[%emt 0:02:57]} 32. c6 {[%emt 0:00:41]} g5 {[%emt 0:01:41]} 33. Rc5 {[%emt 0:04:13]} Kh7 {[%emt 0:02:05]} 34. Bf2 {[%emt 0:00:27]} Rcxc6 {[%emt 0:00:30]} 35. Rxc6 {[%emt 0:00:12]} Rxc6 {[%emt 0:00:07]} 36. Rxe3 {[%emt 0:00:17]} Kg6 {[%emt 0:00:27]} 37. Rd3 {[%emt 0:00:54]} h4 {[%emt 0:00:35]} 38. Be3 {[%emt 0:00:35]} Rf6 {[%emt 0:00:52]} 39. Bd2 {[%emt 0:00:21]} Rf5 {[%emt 0:00:39]} 40. Kc2 {[%emt 0:00:22]} f6 {[%emt 0:00:31]} 41. Kd1 {[%emt 0:04:48]} Kf7 {[%emt 0:15:01]} 42. Ke2 {[%emt 0:01:42]} Re5+ {[%emt 0:00:33]} 43. Kf2 {[%emt 0:03:23]} Re6 {[%emt 0:01:57]} 44. h3 {[%emt 0:02:24]} Rb6 {[%emt 0:04:45]} 45. f4 {[%emt 0:01:55]} gxf4 {[%emt 0:04:03]} 46. Kf3 {[%emt 0:01:44]} Kg6 {[%emt 0:08:32]} 47. Kxf4 {[%emt 0:04:38]} Re6 {[%emt 0:03:54]} 48. Rd4 {[%emt 0:01:40]} f5 {[%emt 0:03:57]} 49. Be3 {[%emt 0:05:47]} a5 {[%emt 0:00:54]} 50. Ra4 {[%emt 0:01:53]} Ra6 {[%emt 0:00:45]} 51. Bf2 {[%emt 0:01:00]} Ra8 {[%emt 0:00:41]} 52. Bxh4 {[%emt 0:00:41]} Rb8 {[%emt 0:00:33]} 53. Bf2 {[%emt 0:04:10]} Rb5 {[%emt 0:00:47]} 54. Kf3 {[%emt 0:01:45]} Rb3+ {[%emt 0:00:24]} 55. Be3 {[%emt 0:00:52]} Rb5 {[%emt 0:00:19]} 56. Rc4 {[%emt 0:01:03]} Rb4 {[%emt 0:00:51]} 57. Rxb4 {[%emt 0:04:25]} axb4 {[%emt 0:00:01]} 58. Ke2 {[%emt 0:00:32]} Kh5 {[%emt 0:00:52]} 59. Bf2 {[%emt 0:00:05]} Kg5 {[%emt 0:00:28]} 60. Kd3 {[%emt 0:01:11]} Kf4 {[%emt 0:00:10]} 61. h4 {[%emt 0:00:40]} b3 {[%emt 0:00:27]} 62. Kc3 {[%emt 0:00:06]} Kf3 {[%emt 0:00:55]} 63. h5 {[%emt 0:00:34]} Kxf2 {[%emt 0:00:28]} 64. h6 {[%emt 0:00:01]} b2 {[%emt 0:00:19]} 65. Kxb2 {[%emt 0:00:04]} f4 {[%emt 0:00:37]} 66. h7 {[%emt 0:00:02]} f3 {[%emt 0:00:19]} 67. h8=Q {[%emt 0:00:06]} Kg2 {[%emt 0:00:14]} 68. Qg7+ {[%emt 0:00:07]} Kh2 {[%emt 0:01:12]} 69. Qf6 {[%emt 0:00:09]} Kg2 {[%emt 0:00:24]} 70. Qg5+ {[%emt 0:00:04]} Kh1 {[%emt 0:00:25]} 71. Qh5+ {[%emt 0:00:11]} Kg2 {[%emt 0:00:04]} 72. Qg4+ {[%emt 0:00:06]} 1-0

[Event "Fagernes Chess GM-Swiss 2025"]
[Site "Fagernes"]
[Date "2025.04.20"]
[Round "9.3"]
[White "Urazayev, Arystanbek"]
[Black "Ghosh, Diptayan"]
[Result "1/2-1/2"]
[Annotator "ChessBase"]
[ECO "C54"]
[WhiteElo "2467"]
[BlackElo "2573"]
[PlyCount "37"]
[EventDate "2025.04.12"]
[EventCountry "NOR"]
[SourceTitle "playchess.com"]
[Source "ChessBase"]
[SourceQuality "1"]
[TimeControl "40/6000+30:2400+30"]

1. e4 {[%emt 0:07:21]} e5 {[%emt 0:01:29]} 2. Nf3 {[%emt 0:00:05]} Nc6 {[%emt 0:00:03]} 3. Bc4 {[%emt 0:00:06]} Bc5 {[%emt 0:00:15]} 4. c3 {[%emt 0:02:44]} Nf6 {[%emt 0:00:09]} 5. d3 {[%emt 0:00:13]} h6 {[%emt 0:00:23]} 6. b4 {[%emt 0:00:04]} Bb6 {[%emt 0:00:05]} 7. a4 {[%emt 0:01:30]} a6 {[%emt 0:00:06]} 8. O-O {[%emt 0:01:56]} d6 {[%emt 0:00:58]} 9. Nbd2 {[%emt 0:02:06]} O-O {[%emt 0:00:20]} 10. Re1 {[%emt 0:01:46]} Ne7 {[%emt 0:04:35]} 11. Bb3 {[%emt 0:03:05]} Ng6 {[%emt 0:01:45]} 12. d4 {[%emt 0:01:28]} Ba7 13. Bb2 {[%emt 0:04:12]} Re8 {[%emt 0:08:28]} 14. Qc2 {[%emt 0:01:32]} Nh5 {[%emt 0:10:41]} 15. Bc4 {[%emt 0:12:01]} Nh4 {[%emt 0:06:09]} 16. Nxh4 {[%emt 0:05:00]} Qxh4 {[%emt 0:00:13]} 17. g3 {[%emt 0:03:07]} Qg4 {[%emt 0:06:58]} 18. Kh1 {[%emt 0:07:35]} Nf6 {[%emt 0:01:55]} 19. Bf1 {[%emt 0:07:47]} 1/2-1/2

[Event "Fagernes Chess GM-Swiss 2025"]
[Site "Fagernes"]
[Date "2025.04.20"]
[Round "9.4"]
[White "Csonka, Balazs"]
[Black "Raja Rithvik R"]
[Result "1/2-1/2"]
[Annotator "ChessBase"]
[ECO "A13"]
[WhiteElo "2459"]
[BlackElo "2538"]
[PlyCount "78"]
[EventDate "2025.04.12"]
[EventCountry "NOR"]
[SourceTitle "playchess.com"]
[Source "ChessBase"]
[SourceQuality "1"]
[TimeControl "40/6000+30:2400+30"]

1. c4 {[%emt 0:03:16]} e6 {[%emt 0:02:02]} 2. g3 {[%emt 0:00:00]} d5 {[%emt 0:00:31]} 3. Bg2 {[%emt 0:00:00]} Nf6 {[%emt 0:01:26]} 4. Nf3 {[%emt 0:00:00]} dxc4 {[%emt 0:04:01]} 5. Qa4+ {[%emt 0:00:00]} Bd7 {[%emt 0:01:37]} 6. Qxc4 {[%emt 0:00:00]} c5 {[%emt 0:00:04]} 7. O-O {[%emt 0:06:04]} Bc6 {[%emt 0:02:11]} 8. Nc3 {[%emt 0:00:12]} Nbd7 {[%emt 0:08:37]} 9. e4 {[%emt 0:03:44]} Be7 {[%emt 0:03:10]} 10. Qe2 e5 {[%emt 0:05:27]} 11. d3 {[%emt 0:03:21]} O-O {[%emt 0:00:16]} 12. a4 {[%emt 0:10:22]} Ne8 {[%emt 0:07:04]} 13. Nd2 {[%emt 0:07:57]} Nc7 {[%emt 0:01:05]} 14. Nc4 {[%emt 0:00:12]} Ne6 {[%emt 0:01:32]} 15. f4 {[%emt 0:13:12]} exf4 {[%emt 0:02:19]} 16. gxf4 {[%emt 0:00:56]} Nd4 {[%emt 0:00:22]} 17. Qd1 {[%emt 0:09:03]} f5 {[%emt 0:08:23]} 18. Be3 {[%emt 0:00:00]} Rc8 {[%emt 0:16:29]} 19. Kh1 {[%emt 0:04:44]} Kh8 {[%emt 0:01:55]} 20. b3 {[%emt 0:05:41]} b6 {[%emt 0:12:39]} 21. Bxd4 {[%emt 0:11:20]} cxd4 {[%emt 0:00:06]} 22. Nb5 {[%emt 0:00:07]} Bxb5 {[%emt 0:06:24]} 23. axb5 {[%emt 0:00:09]} Rc7 {[%emt 0:00:54]} 24. e5 {[%emt 0:06:47]} Nc5 {[%emt 0:02:20]} 25. b4 {[%emt 0:07:19]} Ne6 {[%emt 0:01:46]} 26. Qa4 {[%emt 0:01:45]} Rg8 {[%emt 0:02:50]} 27. Ra2 {[%emt 0:01:17]} g5 {[%emt 0:09:28]} 28. fxg5 {[%emt 0:01:17]} Bxg5 {[%emt 0:00:06]} 29. Nd6 {[%emt 0:04:39]} Bf4 {[%emt 0:03:09]} 30. Nxf5 {[%emt 0:05:01]} Qg5 {[%emt 0:02:46]} 31. Be4 {[%emt 0:01:01]} Bxe5 {[%emt 0:03:49]} 32. Rg2 {[%emt 0:01:50]} Qh5 {[%emt 0:00:04]} 33. Rxg8+ {[%emt 0:00:48]} Kxg8 {[%emt 0:00:02]} 34. Qa2 {[%emt 0:00:20]} Kh8 {[%emt 0:00:02]} 35. Rg1 {[%emt 0:02:00]} Ng7 {[%emt 0:01:58]} 36. Nxg7 {[%emt 0:02:23]} Rxg7 {[%emt 0:00:32]} 37. Rxg7 {[%emt 0:01:32]} Kxg7 {[%emt 0:00:50]} 38. Qxa7+ {[%emt 0:00:33]} Qf7 {[%emt 0:00:19]} 39. Qxf7+ {[%emt 0:00:28]} Kxf7 {[%emt 0:00:05]} 1/2-1/2

[Event "Fagernes Chess GM-Swiss 2025"]
[Site "Fagernes"]
[Date "2025.04.20"]
[Round "9.5"]
[White "Makhnev, Denis"]
[Black "Kaasen, Tor Fredrik"]
[Result "0-1"]
[Annotator "ChessBase"]
[ECO "E92"]
[WhiteElo "2537"]
[BlackElo "2472"]
[PlyCount "88"]
[EventDate "2025.04.12"]
[EventCountry "NOR"]
[SourceTitle "playchess.com"]
[Source "ChessBase"]
[SourceQuality "1"]
[TimeControl "40/6000+30:2400+30"]

1. Nf3 {[%emt 0:05:07]} Nf6 {[%emt 0:01:38]} 2. c4 {[%emt 0:01:33]} g6 {[%emt 0:00:32]} 3. Nc3 {[%emt 0:00:22]} Bg7 {[%emt 0:00:13]} 4. e4 {[%emt 0:01:03]} d6 {[%emt 0:00:28]} 5. d4 {[%emt 0:00:09]} O-O {[%emt 0:00:12]} 6. Be2 {[%emt 0:00:09]} e5 {[%emt 0:00:39]} 7. d5 {[%emt 0:04:23]} a5 {[%emt 0:01:20]} 8. Be3 {[%emt 0:00:23]} Na6 {[%emt 0:01:49]} 9. Nd2 {[%emt 0:00:25]} Nd7 {[%emt 0:00:48]} 10. g4 {[%emt 0:00:41]} Ndc5 11. h4 {[%emt 0:18:45]} f5 {[%emt 0:04:38]} 12. g5 {[%emt 0:02:29]} f4 {[%emt 0:17:02]} 13. Bxc5 {[%emt 0:00:11]} Nxc5 {[%emt 0:00:06]} 14. Nb3 {[%emt 0:02:01]} f3 {[%emt 0:08:58]} 15. Bxf3 {[%emt 0:00:29]} Nxb3 {[%emt 0:01:54]} 16. axb3 {[%emt 0:00:08]} Rf4 {[%emt 0:03:07]} 17. Bg2 {[%emt 0:11:26]} h6 {[%emt 0:05:56]} 18. Ne2 {[%emt 0:12:55]} Rf7 {[%emt 0:28:08]} 19. Qd2 {[%emt 0:02:40]} hxg5 {[%emt 0:01:02]} 20. hxg5 {[%emt 0:10:50]} Bg4 {[%emt 0:02:06]} 21. Qe3 {[%emt 0:03:23]} Qe7 {[%emt 0:07:51]} 22. f3 {[%emt 0:04:26]} Bd7 {[%emt 0:01:45]} 23. Kd2 {[%emt 0:02:16]} b6 {[%emt 0:03:59]} 24. Bh3 {[%emt 0:00:43]} Raf8 {[%emt 0:00:43]} 25. Raf1 {[%emt 0:00:17]} b5 {[%emt 0:01:10]} 26. Nc3 {[%emt 0:03:14]} bxc4 {[%emt 0:03:02]} 27. bxc4 {[%emt 0:00:37]} Rb8 {[%emt 0:01:46]} 28. Bxd7 {[%emt 0:00:08]} Qxd7 {[%emt 0:00:17]} 29. Nb5 {[%emt 0:00:07]} Rf4 {[%emt 0:02:50]} 30. Kc2 {[%emt 0:06:29]} c6 {[%emt 0:02:14]} 31. Nc3 {[%emt 0:03:38]} Qb7 {[%emt 0:03:15]} 32. Nd1 {[%emt 0:00:17]} cxd5 {[%emt 0:01:36]} 33. cxd5 {[%emt 0:00:01]} Rf7 {[%emt 0:01:29]} 34. Kb1 {[%emt 0:00:39]} a4 {[%emt 0:01:56]} 35. Rf2 {[%emt 0:01:31]} Qa6 {[%emt 0:01:08]} 36. Rc2 {[%emt 0:00:19]} a3 {[%emt 0:00:45]} 37. Rc6 {[%emt 0:00:45]} Qa4 {[%emt 0:00:38]} 38. Qc3 {[%emt 0:00:25]} Rb3 {[%emt 0:01:46]} 39. Rc8+ {[%emt 0:07:47]} Bf8 {[%emt 0:00:32]} 40. Qc2 {[%emt 0:00:04]} axb2 {[%emt 0:00:31]} 41. Nxb2 {[%emt 0:40:20]} Rfxf3 {[%emt 0:10:05]} 42. Rb8 {[%emt 0:00:00]} Qd4 {[%emt 0:07:27]} 43. Rxb3 {[%emt 0:00:00]} Rxb3 {[%emt 0:00:06]} 44. Qh2 {[%emt 0:00:00]} Rxb2+ {[%emt 0:01:10]} 0-1

[Event "Fagernes Chess GM-Swiss 2025"]
[Site "Fagernes"]
[Date "2025.04.20"]
[Round "9.6"]
[White "Ghasi, Ameet K"]
[Black "Kulaots, Kaido"]
[Result "1/2-1/2"]
[Annotator "ChessBase"]
[ECO "D76"]
[WhiteElo "2502"]
[BlackElo "2510"]
[PlyCount "108"]
[EventDate "2025.04.12"]
[EventCountry "NOR"]
[SourceTitle "playchess.com"]
[Source "ChessBase"]
[SourceQuality "1"]
[TimeControl "40/6000+30:2400+30"]

1. Nf3 {[%emt 0:04:01]} g6 {[%emt 0:00:52]} 2. d4 {[%emt 0:00:57]} Bg7 {[%emt 0:00:21]} 3. g3 {[%emt 0:01:27]} Nf6 {[%emt 0:01:55]} 4. Bg2 {[%emt 0:01:47]} O-O {[%emt 0:00:22]} 5. c4 {[%emt 0:00:15]} d5 {[%emt 0:03:26]} 6. cxd5 {[%emt 0:03:14]} Nxd5 {[%emt 0:00:34]} 7. O-O {[%emt 0:00:07]} Nb6 {[%emt 0:01:40]} 8. Nc3 {[%emt 0:01:27]} Nc6 {[%emt 0:00:35]} 9. e3 {[%emt 0:00:08]} Re8 {[%emt 0:02:49]} 10. h3 {[%emt 0:02:07]} e5 {[%emt 0:10:52]} 11. d5 {[%emt 0:01:14]} Na5 {[%emt 0:07:00]} 12. Qc2 {[%emt 0:01:04]} c6 {[%emt 0:11:34]} 13. b4 {[%emt 0:03:11]} Nac4 {[%emt 0:02:20]} 14. dxc6 {[%emt 0:03:15]} bxc6 {[%emt 0:00:19]} 15. Nd2 {[%emt 0:25:53]} e4 {[%emt 0:17:12]} 16. Nxc4 {[%emt 0:12:42]} Nxc4 {[%emt 0:00:06]} 17. Nxe4 {[%emt 0:05:57]} Bxa1 {[%emt 0:05:12]} 18. Qxc4 {[%emt 0:01:13]} Rb8 {[%emt 0:05:22]} 19. Bd2 {[%emt 0:18:15]} Bg7 {[%emt 0:03:05]} 20. Rd1 {[%emt 0:00:47]} Be6 {[%emt 0:02:51]} 21. Qxc6 {[%emt 0:02:12]} Qd3 {[%emt 0:18:58]} 22. Qc1 {[%emt 0:06:26]} Red8 {[%emt 0:01:55]} 23. Nc5 {[%emt 0:02:31]} Qc4 {[%emt 0:01:15]} 24. Be1 {[%emt 0:00:39]} Qxa2 {[%emt 0:04:30]} 25. g4 {[%emt 0:04:28]} Qc4 {[%emt 0:04:46]} 26. Bf3 {[%emt 0:02:48]} Qxc1 {[%emt 0:00:35]} 27. Rxc1 {[%emt 0:00:02]} Rbc8 {[%emt 0:01:04]} 28. Bc3 {[%emt 0:03:34]} Bxc3 {[%emt 0:01:25]} 29. Rxc3 {[%emt 0:00:01]} Bd5 {[%emt 0:00:33]} 30. Bxd5 {[%emt 0:01:56]} Rxd5 {[%emt 0:00:02]} 31. Ra3 {[%emt 0:00:09]} Rc7 {[%emt 0:01:01]} 32. Kg2 {[%emt 0:00:47]} Kg7 {[%emt 0:00:26]} 33. Kf3 {[%emt 0:01:06]} Rd1 {[%emt 0:00:38]} 34. Rc3 {[%emt 0:01:01]} Kg8 {[%emt 0:00:27]} 35. Ra3 {[%emt 0:00:18]} Kf8 {[%emt 0:00:37]} 36. g5 {[%emt 0:00:44]} Rd5 {[%emt 0:00:59]} 37. h4 {[%emt 0:00:15]} Kg7 {[%emt 0:00:41]} 38. Kg3 {[%emt 0:00:22]} h6 {[%emt 0:00:22]} 39. f4 {[%emt 0:00:05]} Rd1 {[%emt 0:00:00]} 40. Rc3 {[%emt 0:00:43]} Re7 {[%emt 0:00:58]} 41. Kf3 {[%emt 0:07:43]} Rf1+ {[%emt 0:01:13]} 42. Kg3 {[%emt 0:03:41]} Rb1 {[%emt 0:00:28]} 43. Na6 {[%emt 0:01:06]} Ra1 {[%emt 0:16:21]} 44. Nc7 {[%emt 0:04:24]} Rd1 {[%emt 0:00:39]} 45. Kf3 {[%emt 0:01:51]} Rdd7 {[%emt 0:02:13]} 46. Na6 {[%emt 0:01:38]} Rb7 {[%emt 0:05:08]} 47. Rc4 {[%emt 0:01:25]} Red7 {[%emt 0:04:03]} 48. Nc5 {[%emt 0:03:20]} Rbc7 {[%emt 0:00:55]} 49. Rc3 {[%emt 0:02:10]} Re7 {[%emt 0:04:13]} 50. Ra3 {[%emt 0:01:01]} Rc6 {[%emt 0:00:35]} 51. Ne4 {[%emt 0:01:02]} Rb7 {[%emt 0:06:49]} 52. Nf6 {[%emt 0:00:27]} Rxb4 {[%emt 0:02:30]} 53. Rxa7 {[%emt 0:00:25]} Rxf6 {[%emt 0:00:19]} 54. gxf6+ {[%emt 0:00:05]} Kxf6 {[%emt 0:00:02]} 1/2-1/2

[Event "Fagernes Chess GM-Swiss 2025"]
[Site "Fagernes"]
[Date "2025.04.20"]
[Round "9.7"]
[White "Bazakutsa, Svyatoslav"]
[Black "Moksh Amit Doshi"]
[Result "1/2-1/2"]
[Annotator "ChessBase"]
[ECO "A20"]
[WhiteElo "2474"]
[BlackElo "2369"]
[PlyCount "34"]
[EventDate "2025.04.12"]
[EventCountry "NOR"]
[SourceTitle "playchess.com"]
[Source "ChessBase"]
[SourceQuality "1"]
[TimeControl "40/6000+30:2400+30"]

1. c4 {[%emt 0:00:41]} e5 {[%emt 0:06:48]} 2. g3 {[%emt 0:00:06]} c6 {[%emt 0:00:06]} 3. Nf3 {[%emt 0:00:31]} e4 {[%emt 0:00:04]} 4. Nd4 {[%emt 0:00:06]} d5 {[%emt 0:00:06]} 5. d3 {[%emt 0:00:07]} Bc5 {[%emt 0:00:13]} 6. Nb3 {[%emt 0:00:06]} Bb4+ {[%emt 0:00:14]} 7. Bd2 {[%emt 0:00:12]} Bxd2+ {[%emt 0:00:07]} 8. Qxd2 {[%emt 0:00:07]} dxc4 {[%emt 0:00:33]} 9. dxc4 {[%emt 0:00:08]} f5 {[%emt 0:00:18]} 10. Bh3 {[%emt 0:00:14]} Qxd2+ {[%emt 0:11:17]} 11. N1xd2 {[%emt 0:00:19]} Nf6 {[%emt 0:00:36]} 12. f3 {[%emt 0:04:26]} exf3 {[%emt 0:03:51]} 13. exf3 {[%emt 0:00:13]} Na6 {[%emt 0:03:34]} 14. a3 {[%emt 0:10:24]} f4 {[%emt 0:09:05]} 15. Bxc8 {[%emt 0:06:47]} Rxc8 {[%emt 0:00:31]} 16. O-O-O {[%emt 0:00:08]} fxg3 {[%emt 0:03:45]} 17. hxg3 {[%emt 0:04:37]} O-O {[%emt 0:05:46]} 1/2-1/2

[Event "Fagernes Chess GM-Swiss 2025"]
[Site "Fagernes"]
[Date "2025.04.20"]
[Round "9.9"]
[White "Mitusov, Semen"]
[Black "Rozentalis, Eduardas"]
[Result "1-0"]
[Annotator "ChessBase"]
[ECO "C43"]
[WhiteElo "2459"]
[BlackElo "2481"]
[PlyCount "43"]
[EventDate "2025.04.12"]
[EventCountry "NOR"]
[SourceTitle "playchess.com"]
[Source "ChessBase"]
[SourceQuality "1"]
[TimeControl "40/6000+30:2400+30"]

1. e4 {[%emt 0:00:03]} e5 {[%emt 0:00:22]} 2. Nf3 {[%emt 0:00:42]} Nf6 {[%emt 0:00:20]} 3. d4 {[%emt 0:01:19]} Nxe4 {[%emt 0:01:50]} 4. Bd3 {[%emt 0:00:05]} d5 {[%emt 0:00:07]} 5. Nxe5 {[%emt 0:01:44]} Nd7 {[%emt 0:00:41]} 6. Nc3 {[%emt 0:05:15]} Nxe5 {[%emt 0:06:33]} 7. dxe5 {[%emt 0:00:13]} Nxc3 {[%emt 0:00:45]} 8. bxc3 {[%emt 0:00:05]} Be7 {[%emt 0:00:09]} 9. O-O {[%emt 0:03:23]} O-O {[%emt 0:00:24]} 10. f4 {[%emt 0:01:56]} Bc5+ {[%emt 0:04:10]} 11. Kh1 {[%emt 0:00:02]} Qe7 {[%emt 0:03:23]} 12. Qh5 {[%emt 0:09:00]} g6 {[%emt 0:09:07]} 13. Qf3 {[%emt 0:03:05]} Bd7 {[%emt 0:02:40]} 14. Qg3 {[%emt 0:16:21]} f6 {[%emt 0:12:24]} 15. e6 {[%emt 0:02:40]} Bc6 {[%emt 0:20:30]} 16. f5 {[%emt 0:00:29]} g5 {[%emt 0:02:58]} 17. h4 {[%emt 0:07:47]} Bd6 {[%emt 0:03:18]} 18. Qg4 {[%emt 0:04:57]} h6 {[%emt 0:00:28]} 19. hxg5 {[%emt 0:10:01]} hxg5 {[%emt 0:00:22]} 20. Rf3 {[%emt 0:01:06]} Be8 {[%emt 0:07:04]} 21. Rh3 {[%emt 0:02:56]} Kg7 {[%emt 0:02:50]} 22. Bxg5 {[%emt 0:10:53]} 1-0

[Event "Fagernes Chess GM-Swiss 2025"]
[Site "Fagernes"]
[Date "2025.04.20"]
[Round "9.10"]
[White "Kvaloy, Aksel Bu"]
[Black "Aradhya, Garg"]
[Result "1-0"]
[Annotator "RC"]
[ECO "C78"]
[WhiteElo "2481"]
[BlackElo "2387"]
[PlyCount "165"]
[EventDate "2025.04.12"]
[EventCountry "NOR"]
[SourceTitle "playchess.com"]
[Source "ChessBase"]
[SourceQuality "1"]
[TimeControl "40/6000+30:2400+30"]

1. e4 {[%emt 0:02:13]} e5 {[%emt 0:00:06]} 2. Nf3 {[%emt 0:00:15]} Nc6 {[%emt 0:00:02]} 3. Bb5 {[%emt 0:00:19]} a6 {[%emt 0:00:01]} 4. Ba4 {[%emt 0:00:05]} Nf6 {[%emt 0:00:20]} 5. d3 {[%emt 0:00:23]} Bc5 {[%emt 0:00:34]} 6. c3 {[%emt 0:00:57]} d6 {[%emt 0:01:05]} 7. O-O {[%emt 0:00:29]} O-O {[%emt 0:02:06]} 8. h3 {[%emt 0:03:39]} Ne7 {[%emt 0:00:19]} 9. Re1 {[%emt 0:01:55]} Ng6 {[%emt 0:00:09]} 10. d4 {[%emt 0:07:35]} Ba7 {[%emt 0:00:09]} 11. Nbd2 {[%emt 0:01:14]} exd4 {[%emt 0:25:09]} 12. cxd4 {[%emt 0:00:19]} c5 {[%emt 0:00:24]} 13. e5 {[%emt 0:05:08]} dxe5 {[%emt 0:00:21]} 14. dxe5 {[%emt 0:00:28]} Nh5 {[%emt 0:05:10]} 15. Bc2 {[%emt 0:05:10]} Nhf4 {[%emt 0:01:45]} 16. Ne4 {[%emt 0:15:13]} Qxd1 {[%emt 0:02:31]} 17. Rxd1 {[%emt 0:00:13]} Be6 {[%emt 0:01:25]} 18. Be3 {[%emt 0:01:53]} Rac8 {[%emt 0:22:57]} 19. Nd6 {[%emt 0:02:05]} Rc7 {[%emt 0:00:02]} 20. Be4 {[%emt 0:00:48]} b5 {[%emt 0:11:18]} 21. Bb7 {[%emt 0:03:11]} a5 {[%emt 0:02:21]} 22. g3 {[%emt 0:12:17]} Ne2+ {[%emt 0:00:45]} 23. Kg2 {[%emt 0:00:15]} Nd4 {[%emt 0:01:52]} 24. Bxd4 {[%emt 0:01:49]} cxd4 {[%emt 0:00:02]} 25. Be4 {[%emt 0:00:39]} Rc5 {[%emt 0:06:28]} 26. Nb7 {[%emt 0:01:21]} Rd5 {[%emt 0:00:02]} 27. Nxa5 {[%emt 0:05:22]} Nxe5 {[%emt 0:00:11]} 28. Nxe5 {[%emt 0:05:34]} Rxe5 {[%emt 0:00:07]} 29. Bf3 {[%emt 0:00:06]} Bd5 {[%emt 0:04:08]} 30. Bxd5 {[%emt 0:16:25]} Rxd5 {[%emt 0:00:03]} 31. Rd2 {[%emt 0:04:07]} Rc8 {[%emt 0:00:22]} 32. Rad1 {[%emt 0:01:18]} g6 {[%emt 0:00:27]} 33. Nb3 {[%emt 0:00:16]} Rc4 {[%emt 0:00:02]} 34. Nc1 {[%emt 0:03:02]} Ra4 {[%emt 0:09:21]} 35. Nd3 {[%emt 0:00:35]} Bb6 {[%emt 0:02:26]} 36. Re2 {[%emt 0:02:41]} Kf8 {[%emt 0:00:57]} 37. Rde1 {[%emt 0:03:18]} Rd8 {[%emt 0:01:22]} 38. Re7 {[%emt 0:02:49]} Rxa2 {[%emt 0:02:09]} 39. Rb7 {[%emt 0:00:41]} Rd6 {[%emt 0:00:08]} 40. Re5 {[%emt 0:03:17]} Bd8 {[%emt 0:01:25]} 41. Rbxb5 {[%emt 0:05:16]} Bf6 {[%emt 0:00:57]} 42. Ra5 {[%emt 0:08:08]} Ra6 {[%emt 0:05:47]} 43. Rxa6 {[%emt 0:00:20]} Rxa6 {[%emt 0:00:02]} 44. Rc5 {[%emt 0:00:50]} g5 {[%emt 0:03:39]} 45. g4 {[%emt 0:03:22]} Ra1 {[%emt 0:01:13]} 46. Rc1 {[%emt 0:00:28]} Ra7 {[%emt 0:02:08]} 47. Kf3 {[%emt 0:00:21]} Kg7 {[%emt 0:00:01]} 48. b4 {[%emt 0:04:46]} Ra2 {[%emt 0:10:40]} 49. Rb1 {[%emt 0:02:52]} Bd8 {[%emt 0:00:47]} 50. b5 {[%emt 0:01:10]} Bb6 {[%emt 0:00:07]} 51. Rb3 {[%emt 0:03:27]} Rc2 {[%emt 0:01:57]} 52. Ke4 {[%emt 0:04:44]} Rc3 {[%emt 0:03:16]} 53. Rb2 {[%emt 0:00:55]} h5 {[%emt 0:00:49]} 54. Ne5 {[%emt 0:04:39]} h4 {[%emt 0:06:13]} 55. Nd7 {[%emt 0:00:51]} Bd8 {[%emt 0:00:25]} 56. b6 {[%emt 0:02:36]} Rxh3 {[%emt 0:01:35]} 57. b7 {[%emt 0:00:04]} Bc7 {[%emt 0:00:02]} 58. Rb1 {[%emt 0:00:54]} Ra3 {[%emt 0:02:22]} 59. b8=Q Bxb8 {[%emt 0:00:02]} 60. Nxb8 {[%emt 0:00:56]} Ra2 {[%emt 0:03:56]} 61. Kf3 {[%emt 0:00:53]} Ra3+ {[%emt 0:00:26]} 62. Ke4 {[%emt 0:00:03]} d3 {[%emt 0:01:24]} 63. Nc6 {[%emt 0:01:15]} Rc3 {[%emt 0:02:08]} 64. Nd4 {[%emt 0:01:15]} h3 {[%emt 0:05:28]} 65. Ke3 {[%emt 0:00:47]} Kf6 {[%emt 0:00:29]} 66. Rd1 {[%emt 0:01:46]} Kg6 {[%emt 0:03:17]} 67. Nf5 {[%emt 0:01:06]} Kf6 {[%emt 0:00:37]} 68. Kd4 {[%emt 0:00:46]} Rc2 {[%emt 0:01:02]} 69. Ke3 {[%emt 0:00:13]} d2 {[%emt 0:00:11]} 70. Rxd2 {[%emt 0:00:40]} h2 {[%emt 0:00:57]} 71. Rd1 {[%emt 0:00:38]} Ke5 {[%emt 0:00:29]} 72. Kf3 {[%emt 0:00:10]} Rc4 {[%emt 0:01:32]} 73. Ne3 {[%emt 0:00:22]} Rf4+ {[%emt 0:00:37]} 74. Kg3 {[%emt 0:00:26]} Ke4 {[%emt 0:00:02]} 75. Kg2 {[%emt 0:00:55]} f6 {[%emt 0:00:48]} 76. Kg3 {[%emt 0:00:07]} Rf3+ {[%emt 0:00:16]} 77. Kg2 {[%emt 0:00:03]} Rf4 {[%emt 0:00:02]} 78. Rf1 {[%emt 0:00:59]} Kd3 {[%emt 0:00:15]} 79. Kxh2 {[%emt 0:00:13]} Ke2 {[%emt 0:00:01]} 80. Kg2 {[%emt 0:00:07]} Rb4 {[%emt 0:01:13]} 81. Ra1 {[%emt 0:00:35]} Rf4 {[%emt 0:00:23]} 82. Ra4 {[%emt 0:00:04]} Kd3 {[%emt 0:00:45]} 83. Rxf4 {[%emt 0:00:00]} 1-0